[Event "Slovakian ECo-C Extraliga 2024-25"]
[Site "Slovakia"]
[Date "2025.01.18"]
[Round "3"]
[White "Moroni, Luca Jr"]
[Black "Navara, David"]
[Result "1/2-1/2"]
[Annotator "TA"]
[ECO "D86"]
[WhiteElo "2545"]
[BlackElo "2671"]
[PlyCount "61"]
[EventDate "2024.09.12"]
[EventType "team-tourn"]
[EventCountry "SVK"]
[SourceTitle "playchess.com"]
[Source "ChessBase"]
[SourceQuality "1"]
[TimeControl "5400+30"]

{[%evp 19,61,10,37,0,2,0,10,0,17,0,18,0,0,0,30,0,0,-24,-13,-57,-33,-26,-27,-24,-30,-21,-18,-24,-25,-16,-27,-22,0,0,0,0,0,0,0,0,0,-7,0,0]} 1. d4 {[%emt 0:00:05]} Nf6 {[%emt 0:00:04]} 2. c4 {[%emt 0:00:07]} g6 {[%emt 0:01:15]} 3. Nc3 {[%emt 0:00:07]} d5 {[%emt 0:00:02]} 4. cxd5 {[%emt 0:00:12]} Nxd5 {[%emt 0:00:05]} 5. e4 {[%emt 0:00:09]} Nxc3 {[%emt 0:00:04]} 6. bxc3 {[%emt 0:00:04]} Bg7 {[%emt 0:00:06]} 7. Bc4 {[%emt 0:00:32]} c5 {[%emt 0:00:06]} 8. Ne2 {[%emt 0:00:11]} Nc6 {[%emt 0:00:06]} 9. Be3 {[%emt 0:00:39]} O-O {[%emt 0:00:19]} 10. O-O {[%emt 0:00:12]} b6 {[%emt 0:00:10]} 11. Bb5 {[%emt 0:00:12]} Bb7 {[%emt 0:03:45]} 12. Rc1 {[%emt 0:02:16]} Rc8 {[%cal Ba8c8,Bc8c6,Bc6d6,Bd6d7][%mdl 32]} 13. Bxc6 Rxc6 {[%emt 0:02:21]} 14. d5 {[%emt 0:00:19]} Rd6 {[%emt 0:01:13]} 15. c4 {[%emt 0:00:08]} e6 {[%emt 0:01:11]} 16. Qa4 {[%emt 0:00:06]} Qd7 {[%emt 0:04:12]} 17. Qxd7 {[%emt 0:09:39]} Rxd7 {[%emt 0:00:04]} 18. Rfd1 {[%emt 0:01:47]} Re8 {[%emt 0:03:06]} 19. Ng3 {[%emt 0:06:46]} f5 {[%emt 0:05:45]} 20. dxe6 {[%emt 0:04:23]} Rxd1+ {[%emt 0:00:11]} 21. Rxd1 {[%emt 0:00:04]} fxe4 {[%emt 0:00:14]} 22. Rd7 {[%emt 0:00:49]} Bc8 {[%emt 0:00:14]} 23. Rxa7 {[%emt 0:02:28]} Bxe6 {[%emt 0:00:05]} 24. Rb7 {[%emt 0:02:10]} Bxc4 {[%emt 0:00:46] Threatens to win with ...Bd3. A strong pair of Bishops.} 25. Rxb6 {[%emt 0:03:48]} Bd4 {[%emt 0:00:31] The position is equal.} 26. Bxd4 {[%emt 0:07:19]} cxd4 {[%emt 0:00:18]} 27. Rb4 {[%emt 0:00:25]} Bxa2 {[%emt 0:02:18]} 28. Rxd4 {[%emt 0:01:31]} e3 {[%emt 0:00:07] [#] ...e2 is the strong threat.} 29. fxe3 {[%emt 0:00:11]} Rxe3 {[%emt 0:00:07]} 30. Re4 {[%emt 0:00:11]} Rxe4 {[%emt 0:00:07]} 31. Nxe4 {[%emt 0:00:04] Weighted Error Value: White=0.09 (flawless) /Black=0.08 (flawless) .  Inaccurate:     	White=2     	Black=1      OK:         	White=7     	Black=9      Best:        	White=2     	Black=1} 1/2-1/2

[Event "Slovakian ECo-C Extraliga 2024-25"]
[Site "Slovakia"]
[Date "2025.01.18"]
[Round "3"]
[White "Stalmach, Richard"]
[Black "Kriebel, Tadeas"]
[Result "0-1"]
[Annotator "TA"]
[ECO "E10"]
[WhiteElo "2455"]
[BlackElo "2510"]
[PlyCount "60"]
[EventDate "2024.09.12"]
[EventType "team-tourn"]
[EventCountry "SVK"]
[SourceTitle "playchess.com"]
[Source "ChessBase"]
[SourceQuality "1"]
[TimeControl "5400+30"]

{[%evp 12,60,36,45,57,60,109,51,48,45,26,-52,-47,-125,-115,-95,-114,-106,-112,-116,-97,-362,-329,-328,-312,-532,-533,-547,-571,-573,-573,-566,-564,-783,-768,-1251,-1230,-29986,-29987,-29988,-29989,-29989,-29990,-29990,-29991,-29991,-29992,-29992,-29993,-29997,-29998]} 1. d4 {[%emt 0:00:03]} Nf6 {[%emt 0:00:06]} 2. c4 {[%emt 0:00:04]} e6 {[%emt 0:00:08]} 3. Nf3 {[%emt 0:00:05]} c5 {[%emt 0:00:09]} 4. d5 {[%emt 0:00:14]} b5 {[%emt 0:00:20]} 5. dxe6 {[%emt 0:02:01]} fxe6 {[%emt 0:00:14]} 6. cxb5 {[%emt 0:00:14]} d5 {[%emt 0:00:07]} 7. Nc3 {[%emt 0:00:41][%cal Oe2e4]} Nbd7 {[%emt 0:00:13]} 8. e4 {[%emt 0:22:28][%cal Re4d5]} Bb7 {[%emt 0:00:31]} (8... d4 $14 {is more appropriate.}) 9. e5 {[%emt 0:06:43]} (9. Ng5 $1 $16 {[%cal Rg5e6]}) 9... Ng4 $14 {[%emt 0:00:20][%cal Od5d4]} 10. Ng5 {[%emt 0:04:05]} Ngxe5 {[%emt 0:01:01]} 11. Nxe6 {[%emt 0:10:25]} ({Better is} 11. f4 $11 Nf7 12. Nxe6) 11... Qe7 $1 $15 {[%emt 0:00:59]} 12. Nxd5 {[%emt 0:12:27]} (12. Nc7+ $1 $15 Kd8 13. Be2 Kxc7 14. Nxd5+ Bxd5 15. Qxd5) 12... Nf3+ $1 $17 {[%emt 0:00:17]} 13. gxf3 {[%emt 0:00:05]} Qxe6+ {[%emt 0:00:04]} 14. Ne3 {[%emt 0:00:04] [#]} Ne5 $1 $36 {[%emt 0:00:08][%mdl 2048] Dodges Bc4. Black is in control.} 15. Be2 {[%emt 0:00:02]} Rd8 {[%emt 0:00:15] Black has more active pieces. The white rooks are passive.} 16. Qa4 $2 {[%emt 0:00:10][%mdl 8192]} (16. Bd2 $17) 16... Nxf3+ {[%emt 0:02:24]} (16... Bxf3 17. Rg1 $17) 17. Bxf3 {[%emt 0:05:12]} Bxf3 {[%emt 0:00:06]} 18. Bd2 $2 {[%emt 0:20:11]} (18. Rg1 {might work better.} Rd1+ 19. Qxd1 Bxd1 20. Kxd1) 18... Bxh1 $19 {[%emt 0:32:41]} 19. O-O-O {[%emt 0:00:05]} Bf3 {[%emt 0:00:17]} 20. Re1 {[%emt 0:00:04][%cal Oe3g2]} Be7 {[%emt 0:00:22]} 21. Nc4 {[%emt 0:02:17]} Qd7 {[%emt 0:07:06] aiming for ...0-0.} 22. Bg5 {[%emt 0:08:26] [#]} O-O $1 {[%emt 0:00:09]} 23. Rxe7 {[%emt 0:04:58]} (23. Bxe7 Rfe8) 23... Qg4 {[%emt 0:00:16] ( -> ...Qg1+)} 24. Bd2 {[%emt 0:00:35] [#]} Rxd2 $1 {[%emt 0:02:26]} 25. Kxd2 {[%emt 0:00:01]} (25. Qb3 Rd1+) 25... Rd8+ {[%emt 0:00:12]} 26. Ke3 {[%emt 0:00:01]} Qd4+ {[%emt 0:05:47]} 27. Kxf3 {[%emt 0:00:06] [#]} Rf8+ $1 {[%emt 0:00:04]} 28. Ke2 {[%emt 0:00:36]} Qxf2+ {[%emt 0:00:05]} (28... Rxf2+ $2 29. Ke1 Qh4 30. Re3 $19 (30. Qxa7 {leads to mate.} Rxh2+ 31. Kd1 Qg4+) (30. Rxa7 Rxb2+ 31. Kd1 Qd4+ 32. Kc1 Qc3+ 33. Kd1 Qd3+ 34. Ke1 Qe2#)) 29. Kd3 {[%emt 0:01:35]} Rd8+ {[%emt 0:00:05]} 30. Kc3 {[%emt 0:01:00]} Qd4+ {[%emt 0:00:10]} 0-1

[Event "Slovakian ECo-C Extraliga 2024-25"]
[Site "Slovakia"]
[Date "2025.01.18"]
[Round "3"]
[White "Simacek, Pavel"]
[Black "Piesik, Piotr"]
[Result "1-0"]
[Annotator "TA"]
[ECO "E46"]
[WhiteElo "2426"]
[BlackElo "2422"]
[PlyCount "139"]
[EventDate "2024.09.12"]
[EventType "team-tourn"]
[EventCountry "SVK"]
[SourceTitle "playchess.com"]
[Source "ChessBase"]
[SourceQuality "1"]
[TimeControl "5400+30"]

{[%evp 12,139,4,0,54,58,74,78,76,67,111,103,101,99,103,97,123,136,154,158,174,91,163,119,137,139,136,52,54,52,56,58,64,72,61,54,67,43,79,70,86,82,95,82,87,84,108,109,115,76,99,86,89,52,121,34,162,162,154,154,151,109,239,230,199,140,257,251,226,203,222,222,212,223,210,216,217,221,228,212,276,268,264,234,289,288,291,284,272,278,386,360,349,370,410,364,464,462,440,395,405,359,447,437,390,332,346,342,562,550,552,541,475,424,477,485,598,603,719,712,620,585,538,546,1064,1108,6625,5710,6127,5820]} 1. d4 {[%emt 0:00:03]} Nf6 {[%emt 0:00:23]} 2. c4 {[%emt 0:00:14]} e6 {[%emt 0:00:10]} 3. Nc3 {[%emt 0:00:14]} Bb4 {[%emt 0:00:24]} 4. e3 {[%emt 0:01:27]} O-O {[%emt 0:02:33]} 5. Nge2 {[%emt 0:00:12]} Re8 {[%emt 0:04:18]} 6. a3 {[%emt 0:00:11]} Bf8 {[%emt 0:00:37]} 7. e4 {[%emt 0:03:10]} e5 {[%emt 0:09:00]} ({Better is} 7... d5 $11) 8. dxe5 $14 {[%emt 0:09:55]} Ng4 {[%emt 0:04:00][%cal Of8c5]} 9. Ng3 {[%emt 0:02:17]} d6 {[%emt 0:04:25]} 10. Be2 {[%emt 0:04:59]} Qh4 {[%emt 0:05:17]} 11. Nb5 {[%emt 0:05:54][%csl LRc7,LRd6][%cal Bc3b5,Bb5c7,Bc7d5,Bd5f4][%mdl 32]} Na6 {[%emt 0:02:58][%cal Bb8a6,Ba6c5,Bc5b3][%mdl 32]} (11... Nxf2 $2 12. Kxf2 Na6 13. Rf1 $18 (13. exd6 c6 $18)) 12. exd6 {[%emt 0:00:56]} cxd6 {[%emt 0:01:45]} 13. Qd5 {[%emt 0:06:23]} (13. Nxd6 $2 Rd8 14. Qd5 Rxd6 $19 (14... Bxd6 $2 15. Bg5 $18)) 13... Re5 {[%emt 0:03:36] Wards off Bg5} 14. Qd4 $1 {[%emt 0:05:00]} Nc5 {[%emt 0:10:51] [#]} 15. Nc7 $1 {[%emt 0:00:26]} (15. Nxd6 $2 Nb3 16. Qc3 Nxc1 (16... Nxa1 17. Nxc8 Re6 18. Nxa7 $15) 17. Bxg4 Bxg4 18. Nxf7 Re7 19. Rxc1 Rxf7 $19) 15... Rb8 {[%emt 0:21:12] [#]} 16. Bf4 {[%emt 0:01:17]} (16. b4 $1 $18 {[%cal Rb4c5]}) 16... Qd8 {[%emt 0:12:55]} 17. Bxe5 {[%emt 0:15:53][%cal Oa1d1]} Nxe5 {[%emt 0:01:24]} 18. Nd5 {[%emt 0:02:09]} Nb3 {[%emt 0:01:51]} 19. Qc3 {[%emt 0:02:11]} (19. Qxa7 $16 Nc6 20. Qa4 Nxa1 21. O-O) 19... Nxa1 {[%emt 0:00:10]} 20. O-O {[%emt 0:00:13][%cal Of2f4]} Be6 {[%emt 0:03:17]} 21. Rxa1 {[%emt 0:01:41]} g6 {[%emt 0:00:53]} 22. Nf4 {[%emt 0:09:19]} Bd7 {[%emt 0:01:55]} 23. Rd1 {[%emt 0:00:56]} Rc8 {[%emt 0:00:15]} 24. Qb3 {[%emt 0:03:24][%cal Og3f1] Dodges b5. White is more active.} b6 {[%emt 0:00:23]} 25. Nf1 {[%emt 0:00:55]} Qe8 {[%emt 0:01:24]} 26. Nd5 {[%emt 0:05:34]} Bg7 {[%emt 0:00:04] ...Ba4 is the strong threat. Inhibits Nf6+.} 27. Rd2 {[%emt 0:00:11]} Nc6 {[%emt 0:02:32]} 28. Qe3 {[%emt 0:05:28]} Qe5 {[%emt 0:01:44]} 29. f4 {[%emt 0:04:50]} Qe8 {[%emt 0:00:34]} 30. Bf3 {[%emt 0:01:15]} Be6 {[%emt 0:02:51]} 31. b3 {[%emt 0:02:10]} Na5 {[%emt 0:01:29]} 32. Bd1 {[%emt 0:01:55]} Kh8 {[%emt 0:00:31]} (32... Bxd5 $14 33. Rxd5 Bb2) 33. Qf2 {[%emt 0:01:45]} ({White should try} 33. g3 $16) 33... f5 {[%emt 0:00:38]} (33... Bxd5 $14 34. exd5 (34. Rxd5 Qxe4 35. Nd2 Qe6 $11) 34... Qd8) 34. exf5 $18 {[%emt 0:00:44]} Bxf5 {[%emt 0:00:07]} 35. Ng3 {[%emt 0:00:13]} Be6 {[%emt 0:00:28]} 36. Bc2 {[%emt 0:00:48]} Qf7 {[%emt 0:00:50]} (36... b5 $16) 37. Ne4 {[%emt 0:00:38] Excellent horsemanship.} Qf8 {[%emt 0:00:29]} 38. Ng5 {[%emt 0:00:33]} (38. Qh4 $18 Bxd5 39. Rxd5) 38... Bxd5 {[%emt 0:00:42]} (38... Bg8 $16 39. Qh4 Bh6) 39. Rxd5 {[%emt 0:00:22][%cal Oc2g6]} (39. cxd5 $6 Qf6 $16) 39... Re8 {[%emt 0:00:21] Black is weak on the light squares} 40. Qh4 {[%emt 0:04:01][%csl Gg5][%cal Rh4h7]} Bh6 {[%emt 0:00:35] [#]} 41. Qxh6 $1 {[%emt 0:00:00][%mdl 512]} Qxh6 {[%emt 0:00:00]} (41... Re1+ 42. Kf2 Qxh6 43. Nf7+ (43. Kxe1 $2 Qh4+ 44. g3 Qxh2 $19) 43... Kg7 44. Nxh6 $18) 42. Nf7+ {[%emt 0:00:00]} (42. Rxd6 $2 {is the wrong capture.} Qf8 43. g3 h6 (43... Qxd6 $2 44. Nf7+ Kg7 45. Nxd6 $19) (43... Re1+ $2 44. Kf2 $19) 44. Bxg6 Re1+ (44... Qxd6 $2 45. Nf7+ Kg7 46. Nxd6 $19) (44... hxg5 $2 45. Rd5 $19) (44... Nxb3 $2 45. Bxe8 hxg5 46. Rd8 $19) 45. Kg2 hxg5 $19 (45... Qxd6 $2 46. Nf7+ Kg7 47. Nxd6 $19) (45... Re2+ $2 46. Kf3 $19)) 42... Kg7 {[%emt 0:00:00]} 43. Nxh6 {[%emt 0:00:00]} Kxh6 {[%emt 0:00:00][%mdl 4096] Endgame KRB-KRN. White is a pawn up.} 44. Kf2 {[%emt 0:00:00] Inhibits Re1.} Re6 {[%emt 0:00:00]} 45. Kf3 {[%emt 0:00:00]} Nc6 {[%emt 0:00:00]} 46. Be4 {[%emt 0:00:00]} Ne7 {[%emt 0:00:00]} 47. Rb5 {[%emt 0:00:00]} Nc8 {[%emt 0:00:00]} 48. a4 {[%emt 0:00:00]} Re7 {[%emt 0:00:00]} 49. g4 {[%emt 0:00:00]} Kg7 {[%emt 0:00:00]} 50. h4 {[%emt 0:00:00]} h6 {[%emt 0:00:00]} 51. h5 {[%emt 0:00:00]} gxh5 {[%emt 0:00:00]} 52. Rxh5 {[%emt 0:00:00]} Re8 {[%emt 0:00:00]} 53. a5 {[%emt 0:00:00]} bxa5 {[%emt 0:00:00]} 54. Rxa5 {[%emt 0:00:00]} Re7 {[%emt 0:00:00]} 55. Ke3 {[%emt 0:00:00]} Nb6 {[%emt 0:00:00]} 56. Kd4 {[%emt 0:00:00]} Rf7 {[%emt 0:00:00]} 57. Bf5 {[%emt 0:00:00]} Rc7 {[%emt 0:00:00]} 58. Be6 {[%emt 0:00:00]} Kf6 {[%emt 0:00:00]} 59. Bd5 {[%emt 0:00:00]} Nd7 $2 {[%emt 0:00:00]} (59... Rg7 {is a better defense.} 60. Bf3 Rf7) 60. Ra6 {[%emt 0:00:35]} Ke7 {[%emt 0:00:00]} 61. b4 {[%emt 0:01:23] Wards off Nc5} Nf6 {[%emt 0:00:00]} 62. Bf3 {[%emt 0:00:33]} Nd7 {[%emt 0:00:00]} 63. Ra1 {[%emt 0:01:14]} Nf8 {[%emt 0:00:00]} 64. Bd5 {[%emt 0:00:30]} Ng6 {[%emt 0:00:00]} 65. Re1+ {[%emt 0:03:43]} Kd7 {[%emt 0:00:00]} 66. Re6 {[%emt 0:01:46]} Nxf4 {[%emt 0:00:00]} 67. Rxh6 {[%emt 0:00:03] and Ke4 would now be decisive} Ne2+ {[%emt 0:00:00]} 68. Kd3 {[%emt 0:00:05]} Nf4+ {[%emt 0:00:00]} 69. Ke4 {[%emt 0:00:06]} Ne2 {[%emt 0:00:00]} 70. g5 {[%emt 0:01:08]} 1-0

[Event "Slovakian ECo-C Extraliga 2024-25"]
[Site "Slovakia"]
[Date "2025.01.18"]
[Round "3"]
[White "Jurcik, Marian"]
[Black "Mrva, Martin"]
[Result "1-0"]
[Annotator "TA"]
[ECO "A16"]
[WhiteElo "2411"]
[BlackElo "2398"]
[PlyCount "63"]
[EventDate "2024.09.12"]
[EventType "team-tourn"]
[EventCountry "SVK"]
[SourceTitle "playchess.com"]
[Source "ChessBase"]
[SourceQuality "1"]
[TimeControl "5400+30"]

{[%evp 13,63,35,47,22,32,22,49,53,106,101,99,106,108,112,108,104,114,116,125,86,73,84,92,85,76,91,80,59,52,29,89,78,79,81,87,95,123,117,125,128,192,207,205,203,211,216,213,200,368,359,737,737]} 1. c4 {[%emt 0:00:03]} Nf6 {[%emt 0:16:09]} 2. Nc3 {[%emt 0:00:22]} c5 {[%emt 0:01:25]} 3. Nf3 {[%emt 0:01:43]} e6 {[%emt 0:03:56]} 4. g3 {[%emt 0:01:28]} Nc6 {[%emt 0:15:01]} 5. Bg2 {[%emt 0:00:54]} d5 {[%emt 0:00:41]} 6. cxd5 Nxd5 {[%emt 0:00:50]} 7. O-O {[%emt 0:05:44]} Nc7 {[%emt 0:07:12]} 8. d3 {[%emt 0:17:41]} Be7 {[%emt 0:03:44]} 9. Be3 {[%emt 0:01:27]} O-O {[%emt 0:10:51]} 10. d4 {[%emt 0:15:28]} Na6 {[%emt 0:07:59]} (10... cxd4 $14 11. Nxd4 Nb4) 11. Rc1 $16 {[%emt 0:03:16]} cxd4 {[%emt 0:12:06]} 12. Nxd4 {[%emt 0:00:25]} Nxd4 {[%emt 0:00:19]} 13. Bxd4 {[%emt 0:01:00]} Nb4 {[%emt 0:04:22]} 14. a3 {[%emt 0:05:32]} Nc6 {[%emt 0:00:44]} 15. Be3 {[%emt 0:00:17]} Qa5 {[%emt 0:02:39]} 16. Qa4 {[%emt 0:01:18]} Qxa4 {[%emt 0:02:56]} 17. Nxa4 {[%emt 0:00:04]} Bd7 {[%emt 0:00:08]} 18. Rfd1 {[%emt 0:04:08]} Rfd8 {[%emt 0:00:14]} 19. Nc5 {[%emt 0:12:30] White is much more active.} Bxc5 {[%emt 0:00:07]} 20. Bxc5 {[%emt 0:00:11]} Be8 {[%emt 0:00:15] Black is weak on the dark squares} 21. b4 {[%emt 0:01:50]} a6 {[%emt 0:02:24]} (21... Rxd1+ $11 22. Rxd1 Rc8) 22. Bb6 {[%emt 0:01:12]} Rxd1+ {[%emt 0:00:43]} 23. Rxd1 {[%emt 0:00:01]} f6 {[%emt 0:00:42]} 24. f4 {[%emt 0:00:58]} Kf7 {[%emt 0:03:01]} 25. Kf2 {[%emt 0:00:24]} Ke7 {[%emt 0:00:25]} 26. g4 $36 {[%emt 0:04:36][%mdl 2048] White is really pushing.} Bd7 {[%emt 0:00:52]} (26... Kf7 $16 27. Be4 g6) 27. Bc5+ $18 {[%emt 0:01:20] A strong pair of Bishops.} Ke8 {[%emt 0:00:10]} 28. Be4 {[%emt 0:01:13]} g6 {[%emt 0:00:28]} 29. Rd3 {[%emt 0:02:16]} f5 {[%emt 0:03:22] [#]} 30. gxf5 $1 {[%emt 0:00:23]} exf5 $2 {[%emt 0:00:23]} (30... gxf5 {is a better defense.} 31. Bf3 Kd8) 31. Bd5 {[%emt 0:00:21] and Re3+ should not be overlooked} Rc8 $2 {[%emt 0:01:06]} (31... Kd8 32. Be6 Nb8) 32. Re3+ {[%emt 0:00:22]} 1-0

[Event "Slovakian ECo-C Extraliga 2024-25"]
[Site "Slovakia"]
[Date "2025.01.18"]
[Round "3"]
[White "Babula, Vlastimil"]
[Black "Pechac, Jergus"]
[Result "0-1"]
[Annotator "TA"]
[ECO "C02"]
[WhiteElo "2322"]
[BlackElo "2599"]
[PlyCount "80"]
[EventDate "2024.09.12"]
[EventType "team-tourn"]
[EventCountry "SVK"]
[SourceTitle "playchess.com"]
[Source "ChessBase"]
[SourceQuality "1"]
[TimeControl "5400+30"]

{[%evp 12,80,16,-21,-20,-17,-15,-106,-87,-94,-79,-92,-106,-93,-75,-68,-68,-64,-10,-19,-22,-19,0,0,85,26,59,65,91,87,100,-238,-249,-241,-240,-242,-244,-257,-240,-240,-248,-408,-376,-418,-418,-449,-465,-487,-503,-532,-503,-537,-491,-460,-447,-376,-347,-339,-302,-310,-290,-315,-283,-320,-293,-287,-287,-510,-479,-491,-418]} 1. d4 {[%emt 0:00:08]} e6 {[%emt 0:00:31]} 2. e4 {[%emt 0:01:13]} d5 {[%emt 0:00:05]} 3. e5 {[%emt 0:00:14]} c5 {[%emt 0:00:12]} 4. c3 {[%emt 0:00:16]} Nc6 {[%emt 0:00:42]} 5. Nf3 {[%emt 0:00:26]} Bd7 {[%emt 0:00:56]} 6. Bd3 {[%emt 0:02:58]} Qb6 {[%emt 0:01:35]} 7. O-O {[%emt 0:00:45]} cxd4 {[%emt 0:00:26]} 8. Re1 {[%emt 0:00:31]} Rc8 {[%emt 0:04:49]} 9. h4 {[%emt 0:01:44]} (9. Nbd2 $11) 9... Nh6 $1 $17 {[%emt 0:04:11]} 10. Ng5 {[%emt 0:11:49]} g6 {[%emt 0:06:19]} 11. Na3 {[%emt 0:18:50]} Bg7 {[%emt 0:13:03]} 12. Bf4 {[%emt 0:02:19]} a6 {[%emt 0:06:09]} 13. Nc2 {[%emt 0:05:18]} dxc3 $1 {[%emt 0:01:41]} 14. bxc3 {[%emt 0:00:36]} Ne7 {[%emt 0:04:35]} (14... O-O $15) 15. Rb1 $11 {[%emt 0:02:12]} Qc7 {[%emt 0:02:13]} 16. Nd4 {[%emt 0:05:55]} b5 {[%emt 0:05:39]} 17. Re3 {[%emt 0:01:00]} Nhf5 {[%emt 0:06:50]} (17... O-O $11 {keeps the balance.}) 18. Bxf5 $1 $16 {[%emt 0:01:25]} gxf5 {[%emt 0:00:08]} (18... Nxf5 $2 19. Nxf5 gxf5 20. Qh5 $18) 19. Qh5 $1 {[%emt 0:15:53]} Ng6 {[%emt 0:00:34] [#]} 20. Rbe1 $1 {[%emt 0:02:10] And now Bh2 would win.} Qc4 {[%emt 0:03:10] [#]} (20... Nxf4 $2 21. Qxf7+ Kd8 22. Qxg7 $18) (20... Kf8 21. Rf3) 21. Nxf5 $2 {[%emt 0:01:49][%mdl 8192]} exf5 $19 {[%emt 0:00:14]} 22. e6 {[%emt 0:00:27]} Qxf4 {[%emt 0:00:19]} (22... Nxf4 23. Qxf7+ Kd8 24. Qxd7#) 23. exd7+ {[%emt 0:00:35]} Kxd7 {[%emt 0:00:05]} 24. Nxf7 {[%emt 0:03:47]} Qg4 {[%emt 0:03:56]} (24... Qxh4 25. Qxf5+ Kc7 26. Nxh8 $18 (26. Qxd5 Qc4 $14)) 25. Qxg4 {[%emt 0:01:11]} fxg4 {[%emt 0:00:02]} 26. Nxh8 $2 {[%emt 0:02:34]} (26. h5 Rhe8 (26... Bxc3 27. Rxc3 Rxc3 28. hxg6 $17) 27. hxg6 Rxe3 (27... hxg6 $2 28. Ne5+ Bxe5 29. Rxe5 $19) (27... Bxc3 28. Rxe8 Rxe8 29. Rc1 $17) 28. Rxe3 hxg6 (28... Rxc3 29. gxh7 d4 30. Re1 $11) 29. Ne5+ Bxe5 30. Rxe5) 26... Bxh8 {[%emt 0:00:20]} ({Weaker is} 26... Rxh8 27. h5 Bh6 28. R3e2 $15) 27. h5 {[%emt 0:01:24]} Bxc3 {[%emt 0:00:32]} 28. Rc1 {[%emt 0:12:31]} Nf4 {[%emt 0:00:12][%cal Oc8c4]} 29. g3 {[%emt 0:01:10]} (29. Rcxc3 $2 Rxc3 (29... Nxh5 $2 {is the wrong capture.} 30. Rxc8 Kxc8 31. Re5 $18) (29... Ne2+ $2 30. Rxe2 Rxc3 31. Re5 $19) 30. Re5 Kd6) (29. Rexc3 $2 Rxc3 (29... Ne2+ $2 30. Kh2 $19) 30. Rd1 Kd6 (30... Nxh5 $2 31. Rxd5+ Kc6 32. Rxh5 $19)) 29... d4 {[%emt 0:00:12]} (29... Nxh5 30. Rcxc3 (30. Rexc3 Rc4 $17) 30... Rc4 31. Ra3 $11) 30. Re4 {[%emt 0:00:29]} Nd3 {[%emt 0:01:49]} 31. Rd1 {[%emt 0:00:41]} Nb2 {[%emt 0:00:17]} 32. Rdxd4+ {[%emt 0:00:07]} Bxd4 {[%emt 0:00:05]} 33. Rxd4+ {[%emt 0:00:04][%mdl 4096] Endgame KRN-KR} Ke6 {[%emt 0:00:15]} 34. Rxg4 {[%emt 0:00:05]} Rc5 {[%emt 0:00:46]} 35. Rg7 {[%emt 0:00:43]} Rxh5 {[%emt 0:00:08]} 36. Ra7 {[%emt 0:00:08]} Kd5 {[%emt 0:01:12] Strongly threatening ...Rh6.} 37. Rxa6 {[%emt 0:00:08]} Kc4 {[%emt 0:02:04]} 38. f4 {[%emt 0:02:00]} Na4 {[%emt 0:05:38]} 39. Kg2 $2 {[%emt 0:00:57]} (39. Ra7) 39... Rd5 {[%emt 0:00:13]} 40. Kf3 {[%emt 0:01:08]} h5 {[%emt 0:00:27]} 0-1

[Event "Slovakian ECo-C Extraliga 2024-25"]
[Site "Slovakia"]
[Date "2025.01.18"]
[Round "3"]
[White "Straka, Jozef"]
[Black "Kusiak, Matej"]
[Result "1/2-1/2"]
[Annotator "TA"]
[ECO "D22"]
[WhiteElo "2279"]
[BlackElo "2227"]
[PlyCount "35"]
[EventDate "2024.09.12"]
[EventType "team-tourn"]
[EventCountry "SVK"]
[SourceTitle "playchess.com"]
[Source "ChessBase"]
[SourceQuality "1"]
[TimeControl "5400+30"]

{[%evp 9,35,34,32,9,12,20,21,14,18,19,32,0,0,0,0,0,0,0,0,-10,-7,-23,-22,-29,-24,-34,-31,-16]} 1. d4 {[%emt 0:00:04]} d5 {[%emt 0:15:28]} 2. c4 {[%emt 0:00:03]} dxc4 {[%emt 0:00:22]} 3. Nf3 {[%emt 0:00:07]} a6 {[%emt 0:00:06]} 4. e3 {[%emt 0:01:21]} b5 {[%emt 0:00:05]} 5. a4 {[%emt 0:01:01]} Bb7 {[%emt 0:00:04]} 6. axb5 {[%emt 0:04:06] D22: Queen's Gambit Accepted: 3 Nf3 a6 4 e3.} axb5 {[%emt 0:00:02]} 7. Rxa8 {[%emt 0:00:14]} Bxa8 {[%emt 0:00:02]} 8. b3 {[%emt 0:00:51] The position is equal.} Nf6 {[%emt 0:00:18][%cal Oc7c5]} 9. bxc4 {[%emt 0:02:02]} bxc4 {[%emt 0:00:06]} 10. Ba3 {[%emt 0:12:44]} e6 {[%emt 0:03:56]} 11. Bxf8 {[%emt 0:01:04]} Kxf8 {[%emt 0:00:02]} 12. Bxc4 {[%emt 0:00:23]} g6 $146 {[%emt 0:01:03]} (12... Nbd7 13. O-O g6 14. Bb5 Kg7 15. Qc2 Be4 16. Qc1 c5 17. dxc5 Bxb1 18. c6 Be4 {½-½ So,W (2667)-Ismagambetov,A (2500) Asia-ch Mashhad 2011 (1)}) 13. O-O {[%emt 0:02:48]} Kg7 {[%emt 0:00:28]} 14. Nc3 {[%emt 0:02:30]} Nbd7 {[%emt 0:00:09]} 15. Qe2 {[%emt 0:06:12]} c5 {[%emt 0:01:35]} 16. Rd1 {[%emt 0:04:51]} Bxf3 {[%emt 0:01:40]} 17. Qxf3 {[%emt 0:05:32]} cxd4 {[%emt 0:00:07]} 18. Rxd4 {[%emt 0:11:31] An uneventful encounter.   Weighted Error Value: White=0.09 (flawless) /Black=0.00 (flawless)   Inaccurate:     	White=1     	---        OK:         	White=4     	Black=7      Best:        	White=1     	---} 1/2-1/2